fUST/lending_fUST_20260501
["ID","MTS","AMOUNT","RATE_DAILY","PERIOD"]
[421429526,1777635041000,-23299.9999989,0.0001697,2]
[421429515,1777635041000,-500.0,0.00016969,2]
[421429517,1777635041000,-500.0,0.00016969,2]
[421429504,1777635041000,-500.0,0.00016969,2]
[421429505,1777635041000,-500.0,0.00016969,2]
[421429506,1777635041000,-500.0,0.00016969,2]
[421429507,1777635041000,-566.90041059,0.00016969,2]
[421429508,1777635041000,-500.0,0.00016969,2]
[421429510,1777635041000,-500.0,0.00016969,2]
[421429502,1777635041000,-398.78836376,0.00016967,2]
[421429511,1777635041000,-383.08990022,0.00016969,2]
[421429512,1777635041000,-500.0,0.00016969,2]
[421429514,1777635041000,-500.0,0.00016969,2]
[421429516,1777635041000,-500.0,0.00016969,2]
[421429513,1777635041000,-500.0,0.00016969,2]
[421429509,1777635041000,-500.0,0.00016969,2]
[421429562,1777635046000,-6527.78273903,0.0001697,2]
[421429576,1777635048000,-178.272,0.00018,2]
[421429574,1777635048000,-871.7880716,0.00017945,2]
[421429573,1777635048000,-380.6,0.00017817,2]
[421429572,1777635048000,-3504.82859903,0.000178,2]
[421429570,1777635048000,-185.0,0.00017604,2]
[421429571,1777635048000,-164.81261954,0.00017659,2]
[421429564,1777635048000,-160.0,0.00017001,2]
[421429565,1777635048000,-160.0,0.00017001,2]
[421429568,1777635048000,-3286.94184419,0.00017479,2]
[421429566,1777635048000,-263.25652111,0.00017009,2]
[421429567,1777635048000,-864.0,0.0001707,2]
[421429563,1777635048000,-108616.02655598,0.0001697,2]
[421429578,1777635048000,-3722.71535387,0.00018121,2]
[421429569,1777635048000,-442.0,0.00017604,2]
[421429579,1777635048000,-1768.14464543,0.00018166,2]
[421429575,1777635048000,-285.51149143,0.00017945,2]
[421429577,1777635048000,-380.6,0.00018015,2]
[421429580,1777635048000,-1821.5283484,0.00018166,2]
[421429597,1777635048000,-1821.5283484,0.00018322,7]
[421429594,1777635048000,-354.51435322,0.00018291,2]
[421429592,1777635048000,-1821.5283484,0.0001826,2]
[421429593,1777635048000,-1413.63029221,0.00018291,2]
[421429595,1777635048000,-1821.5283484,0.00018291,2]
[421429591,1777635048000,-1031.04080824,0.0001826,2]
[421429596,1777635048000,-1768.14464543,0.00018322,7]
[421429586,1777635048000,-737.10383719,0.0001826,2]
[421429584,1777635048000,-1768.14464543,0.00018228,2]
[421429583,1777635048000,-380.6,0.00018214,2]
[421429598,1777635048000,-1768.14464543,0.00018353,7]
[421429582,1777635048000,-1821.5283484,0.00018197,2]
[421429581,1777635048000,-1768.14464543,0.00018197,2]
[421429585,1777635048000,-1821.5283484,0.00018228,2]
[421429602,1777635049000,-380.6,0.00018412,2]
[421429601,1777635049000,-1768.14464543,0.00018384,7]
[421429600,1777635049000,-1821.5283484,0.00018384,7]
[421429599,1777635049000,-1821.5283484,0.00018353,7]
[421429603,1777635049000,-1821.5283484,0.00018416,7]
[421429610,1777635049000,-466.29676318,0.00018447,7]
[421429606,1777635049000,-907.88036448,0.00018442,2]
[421429607,1777635049000,-569.37999998,0.00018442,2]
[421429605,1777635049000,-2295.78316448,0.00018442,2]
[421429608,1777635049000,-167.55857976,0.00018442,2]
[421429609,1777635049000,-1821.5283484,0.00018447,7]
[421429604,1777635049000,-1768.14464543,0.00018416,7]
[421429612,1777635051000,1202.33835889,0.00019571,120]
[421429611,1777635051000,1275.06984388,0.00019571,120]
[421429613,1777635052000,1275.06984388,0.00019602,120]
[421429614,1777635052000,1202.33835889,0.00019602,120]
[421429616,1777635052000,1275.06984388,0.00019633,120]
[421429617,1777635052000,1202.33835889,0.00019633,120]
[421429615,1777635052000,2930.60114597,0.0001,2]
[421429621,1777635053000,1202.33835889,0.00019696,120]
[421429620,1777635053000,1275.06984388,0.00019696,120]
[421429619,1777635053000,1202.33835889,0.00019664,120]
[421429618,1777635053000,1275.06984388,0.00019664,120]
[421429714,1777635338000,-325.8460697,9.605e-05,2]
[421429713,1777635338000,-200.72291,9.605e-05,2]
[421429712,1777635338000,-187.91575589,9.605e-05,2]
[421429790,1777636198000,5000.0,8.01e-05,2]
[421429791,1777636206000,4592.47882625,8.01e-05,2]
[421429792,1777636221000,5000.0,8.01e-05,2]
[421429807,1777636238000,-300.0,8.499e-05,2]
[421429809,1777636238000,-500.0,8.5e-05,2]
[421429810,1777636238000,-500.0,8.5e-05,2]
[421429815,1777636238000,-500.0,8.5e-05,2]
[421429813,1777636238000,-489.45384719,8.5e-05,2]
[421429814,1777636238000,-500.0,8.5e-05,2]
[421429812,1777636238000,-500.0,8.5e-05,2]
[421429803,1777636238000,-40.73853182,8.499e-05,2]
[421429800,1777636238000,-535.0,8.168e-05,2]
[421429808,1777636238000,-1200.0,8.499e-05,2]
[421429805,1777636238000,-300.0,8.499e-05,2]
[421429804,1777636238000,-259.26146818,8.499e-05,2]
[421429802,1777636238000,-151.0,8.335e-05,2]
[421429801,1777636238000,-198.12017844,8.211e-05,2]
[421429799,1777636238000,-300.0,8.168e-05,2]
[421429806,1777636238000,-300.0,8.499e-05,2]
[421429817,1777636238000,-500.0,8.5e-05,2]
[421429811,1777636238000,-500.0,8.5e-05,2]
[421429821,1777636238000,-500.0,8.5e-05,2]
[421429816,1777636238000,-500.0,8.5e-05,2]
[421429834,1777636238000,-500.0,8.5e-05,2]
[421429832,1777636238000,-500.0,8.5e-05,2]
[421429833,1777636238000,-500.0,8.5e-05,2]
[421429831,1777636238000,-433.38000281,8.5e-05,2]
[421429828,1777636238000,-500.0,8.5e-05,2]
[421429829,1777636238000,-163.16537019,8.5e-05,2]
[421429826,1777636238000,-500.0,8.5e-05,2]
[421429835,1777636238000,-500.0,8.5e-05,2]
[421429827,1777636238000,-500.0,8.5e-05,2]
[421429825,1777636238000,-500.0,8.5e-05,2]
[421429824,1777636238000,-500.0,8.5e-05,2]
[421429818,1777636238000,-500.0,8.5e-05,2]
[421429822,1777636238000,-500.0,8.5e-05,2]
[421429820,1777636238000,-500.0,8.5e-05,2]
[421429819,1777636238000,-500.0,8.5e-05,2]
[421429830,1777636238000,-500.0,8.5e-05,2]
[421429823,1777636238000,-500.0,8.5e-05,2]
[421429880,1777636239000,-500.0,9.048e-05,2]
[421429878,1777636239000,-500.0,8.774e-05,2]
[421429879,1777636239000,-151.0,8.859e-05,2]
[421429882,1777636239000,-420.0,9.349e-05,2]
[421429877,1777636239000,-600.0,8.67e-05,2]
[421429876,1777636239000,-50000.0,8.501e-05,2]
[421429873,1777636239000,-300.0,8.501e-05,2]
[421429874,1777636239000,-300.0,8.501e-05,2]
[421429872,1777636239000,-300.0,8.501e-05,2]
[421429871,1777636239000,-300.0,8.501e-05,2]
[421429870,1777636239000,-300.0,8.501e-05,2]
[421429883,1777636239000,-420.0,9.349e-05,2]
[421429875,1777636239000,-300.0,8.501e-05,2]
[421429881,1777636239000,-500.0,9.322e-05,2]
[421429889,1777636239000,-233.78181055,0.00010211,2]
[421429884,1777636239000,-420.0,9.349e-05,2]
[421429886,1777636239000,-1680.0,9.349e-05,2]
[421429891,1777636239000,-587.0,0.00010284,2]
[421429888,1777636239000,-881.89885403,0.0001,2]
[421429887,1777636239000,-720.0,9.537e-05,2]
[421429890,1777636239000,-587.0,0.00010284,2]
[421429892,1777636239000,-420.0,0.00010284,2]
[421429869,1777636239000,-300.0,8.501e-05,2]
[421429895,1777636239000,-864.0,0.00010491,2]
[421429893,1777636239000,-273.0,0.00010284,2]
[421429894,1777636239000,-2351.0,0.00010284,2]
[421429898,1777636239000,-500.0,0.00010958,2]
[421429896,1777636239000,-500.0,0.00010958,2]
[421429897,1777636239000,-510.25035519,0.00010958,2]
[421429885,1777636239000,-420.0,9.349e-05,2]
[421429866,1777636239000,-300.0,8.501e-05,2]
[421429859,1777636239000,-500.0,8.5e-05,2]
[421429868,1777636239000,-300.0,8.501e-05,2]
[421429901,1777636239000,-500.0,0.00010958,2]
[421429836,1777636239000,-500.0,8.5e-05,2]
[421429840,1777636239000,-500.0,8.5e-05,2]
[421429838,1777636239000,-500.0,8.5e-05,2]
[421429837,1777636239000,-500.0,8.5e-05,2]
[421429839,1777636239000,-500.0,8.5e-05,2]
[421429843,1777636239000,-500.0,8.5e-05,2]
[421429842,1777636239000,-500.0,8.5e-05,2]
[421429841,1777636239000,-500.0,8.5e-05,2]
[421429845,1777636239000,-500.0,8.5e-05,2]
[421429844,1777636239000,-500.0,8.5e-05,2]
[421429846,1777636239000,-500.0,8.5e-05,2]
[421429848,1777636239000,-500.0,8.5e-05,2]
[421429847,1777636239000,-183.86713165,8.5e-05,2]
[421429867,1777636239000,-300.0,8.501e-05,2]
[421429856,1777636239000,-500.0,8.5e-05,2]
[421429849,1777636239000,-500.0,8.5e-05,2]
[421429854,1777636239000,-500.0,8.5e-05,2]
[421429851,1777636239000,-500.0,8.5e-05,2]
[421429855,1777636239000,-500.0,8.5e-05,2]
[421429852,1777636239000,-500.0,8.5e-05,2]
[421429853,1777636239000,-500.0,8.5e-05,2]
[421429857,1777636239000,-500.0,8.5e-05,2]
[421429858,1777636239000,-500.0,8.5e-05,2]
[421429861,1777636239000,-300.0,8.501e-05,2]
[421429860,1777636239000,-500.0,8.5e-05,2]
[421429862,1777636239000,-300.0,8.501e-05,2]
[421429864,1777636239000,-300.0,8.501e-05,2]
[421429863,1777636239000,-300.0,8.501e-05,2]
[421429865,1777636239000,-300.0,8.501e-05,2]
[421429850,1777636239000,-500.0,8.5e-05,2]
[421429899,1777636239000,-600.56882338,0.00010958,2]
[421429936,1777636239000,-185.0,0.00017647,2]
[421429905,1777636239000,-500.0,0.00010959,2]
[421429934,1777636239000,-1609.4578323,0.00017316,2]
[421429939,1777636239000,-150.358,0.00017647,2]
[421429938,1777636239000,-213.324,0.00017647,2]
[421429941,1777636239000,-260.8,0.00017817,2]
[421429951,1777636239000,-1821.5283484,0.00018478,7]
[421429943,1777636239000,-260.8,0.00018015,2]
[421429942,1777636239000,-13000.0,0.00018,2]
[421429940,1777636239000,-250.0,0.00017647,2]
[421429949,1777636239000,-260.8,0.00018412,2]
[421429945,1777636239000,-178.273,0.00018195,2]
[421429944,1777636239000,-156.0,0.0001805,2]
[421429950,1777636239000,-1301.84788225,0.00018447,7]
[421429946,1777636239000,-376.42833903,0.00018211,2]
[421429948,1777636239000,-1964.76335552,0.00018219,2]
[421429932,1777636239000,-1000.0,0.00016895,2]
[421429947,1777636239000,-260.8,0.00018214,2]
[421429952,1777636239000,-1768.14464543,0.00018478,7]
[421429954,1777636239000,-1821.5283484,0.00018509,7]
[421429955,1777636239000,-1768.14464543,0.00018509,7]
[421429956,1777636239000,-1821.5283484,0.00018541,7]
[421429957,1777636239000,-1768.14464543,0.00018541,7]
[421429958,1777636239000,-1821.5283484,0.00018572,7]
[421429960,1777636239000,-1000.0,0.00018585,2]
[421429959,1777636239000,-1768.14464543,0.00018572,7]
[421429963,1777636239000,-1821.5283484,0.00018603,7]
[421429964,1777636239000,-1768.14464543,0.00018603,7]
[421429962,1777636239000,-579.0,0.00018585,2]
[421429966,1777636239000,-1768.14464543,0.00018634,14]
[421429965,1777636239000,-260.8,0.00018611,2]
[421429902,1777636239000,-500.0,0.00010958,2]
[421429953,1777636239000,-192.638442,0.00018493,2]
[421429933,1777636239000,-151.0,0.000169,2]
[421429961,1777636239000,-1000.0,0.00018585,2]
[421429935,1777636239000,-9430.7191873,0.00017345,2]
[421429909,1777636239000,-151.0,0.00011027,2]
[421429904,1777636239000,-500.0,0.00010959,2]
[421429907,1777636239000,-500.0,0.00010959,2]
[421429900,1777636239000,-500.0,0.00010958,2]
[421429903,1777636239000,-15000.0,0.00010959,2]
[421429908,1777636239000,-547.7841454,0.00010959,2]
[421429906,1777636239000,-500.0,0.00010959,2]
[421429911,1777636239000,-1000.0,0.0001154,2]
[421429910,1777636239000,-2208.0,0.00011312,2]
[421429913,1777636239000,-151.0,0.00012662,2]
[421429915,1777636239000,-244.0,0.00012694,2]
[421429914,1777636239000,-1000.0,0.00012694,2]
[421429917,1777636239000,-427.630642,0.00013699,2]
[421429923,1777636239000,-305.10507479,0.00014211,2]
[421429912,1777636239000,-269.44344267,0.00012211,2]
[421429916,1777636239000,-164.81261954,0.000129,2]
[421429931,1777636239000,-1000.0,0.00016895,2]
[421429921,1777636239000,-1000.0,0.00013963,2]
[421429929,1777636239000,-152.0,0.00016667,7]
[421429937,1777636239000,-151.055,0.00017647,2]
[421429928,1777636239000,-340.76670691,0.00016211,2]
[421429926,1777636239000,-791.0,0.00015359,2]
[421429927,1777636239000,-155.0,0.00015536,2]
[421429930,1777636239000,-16536.119968,0.000168,2]
[421429925,1777636239000,-1000.0,0.00015359,2]
[421429924,1777636239000,-192.638442,0.00015068,2]
[421429922,1777636239000,-492.0,0.00013963,2]
[421429918,1777636239000,-1000.0,0.00013699,2]
[421429967,1777636239000,-151.0,0.000188,2]
[421429920,1777636239000,-1000.0,0.000137,2]
[421429919,1777636239000,-1000.0,0.000137,2]
[421429977,1777636240000,-647.81,0.0001899,2]
[421429976,1777636240000,-3462.21845467,0.0001899,2]
[421429973,1777636240000,-1619.32005131,0.00018899,2]
[421429968,1777636240000,-10005.52847503,0.000188,2]
[421429975,1777636240000,-1858.56423517,0.00018986,10]
[421429972,1777636240000,-404.83001283,0.00018899,2]
[421429971,1777636240000,-260.8,0.00018809,2]
[421429970,1777636240000,-7400.46587397,0.000188,2]
[421429969,1777636240000,-782.9738714,0.000188,2]
[421429974,1777636240000,-3639.82664532,0.00018899,2]
[421429978,1777636241000,-7787.3,0.0001899,2]
[421429990,1777636247000,-232.33563899,0.000188,2]
[421429993,1777636247000,-25257.69936787,0.0001899,2]
[421429992,1777636247000,-25890.06642634,0.0001899,2]
[421429991,1777636247000,-10883.70602724,0.0001899,2]
[421430016,1777636517000,686.76,0.0002191,120]
[421430017,1777636569000,253.16488919,0.00017884,120]
[421430018,1777636612000,261.72262418,0.00017884,120]
[421430074,1777636854000,-2069.39885403,9.7e-05,2]
[421430075,1777636877000,-2014.53227963,9.7e-05,2]
[421430183,1777636900000,-916.06886634,9.7e-05,2]
[421430186,1777636918000,-556.0,9.7e-05,2]
[421430187,1777636936000,-5000.0,9.699e-05,2]
[421430188,1777636954000,-300.0,9.797e-05,2]
[421430189,1777636972000,-741.0,9.798e-05,2]
[421430513,1777637438000,-266.02816783,9.484e-05,2]
[421430514,1777637438000,-244.0,9.484e-05,2]
[421430515,1777637438000,-300.0,9.579e-05,2]
[421430516,1777637438000,-232.3443925,9.579e-05,2]
[421430539,1777637439000,-185.0,0.00016954,2]
[421430540,1777637439000,-2573.8057436,0.00016995,2]
[421430535,1777637439000,-3763.35268014,0.00016122,2]
[421430536,1777637439000,-167.16,0.00016605,2]
[421430544,1777637439000,-175.01,0.00018,2]
[421430534,1777637439000,-217.6744285,0.0001576,2]
[421430545,1777637439000,-300.0,0.00018018,2]
[421430533,1777637439000,-285.19316245,0.00015628,2]
[421430538,1777637439000,-168.91,0.00016938,2]
[421430527,1777637439000,-151.0,0.00011716,2]
[421430528,1777637439000,-251.85889671,0.00013629,2]
[421430531,1777637439000,-1000.0,0.00014547,2]
[421430522,1777637439000,-238.0,9.998e-05,2]
[421430530,1777637439000,-213.815321,0.00013895,2]
[421430526,1777637439000,-218.52463097,0.00011628,2]
[421430524,1777637439000,-300.0,0.00010537,2]
[421430523,1777637439000,-8349.24,0.0001,2]
[421430521,1777637439000,-185.19036523,9.628e-05,2]
[421430525,1777637439000,-2000.0,0.00011,30]
[421430532,1777637439000,-192.638442,0.00015068,2]
[421430520,1777637439000,-3766.06205527,9.58e-05,2]
[421430519,1777637439000,-1233.93794473,9.58e-05,2]
[421430518,1777637439000,-1200.0,9.579e-05,2]
[421430517,1777637439000,-508.6556075,9.579e-05,2]
[421430529,1777637439000,-1000.0,0.00013699,2]
[421430542,1777637439000,-171.28,0.00017615,2]
[421430554,1777637439000,-500.0,0.00018788,2]
[421430541,1777637439000,-200.28631124,0.00017407,2]
[421430569,1777637439000,-1564.429635,0.00018789,2]
[421430567,1777637439000,-500.0,0.00018788,2]
[421430568,1777637439000,-500.0,0.00018788,2]
[421430566,1777637439000,-586.37753722,0.00018788,2]
[421430563,1777637439000,-500.0,0.00018788,2]
[421430565,1777637439000,-318.79840182,0.00018788,2]
[421430561,1777637439000,-170.91530161,0.00018788,2]
[421430558,1777637439000,-500.0,0.00018788,2]
[421430564,1777637439000,-310.79520762,0.00018788,2]
[421430562,1777637439000,-500.0,0.00018788,2]
[421430560,1777637439000,-500.0,0.00018788,2]
[421430559,1777637439000,-500.0,0.00018788,2]
[421430553,1777637439000,-500.0,0.00018788,2]
[421430555,1777637439000,-500.0,0.00018788,2]
[421430551,1777637439000,-500.0,0.00018788,2]
[421430556,1777637439000,-500.0,0.00018788,2]
[421430549,1777637439000,-151.0,0.00018412,2]
[421430550,1777637439000,-151.0,0.00018611,2]
[421430548,1777637439000,-244.541,0.000183,2]
[421430546,1777637439000,-151.0,0.00018214,2]
[421430557,1777637439000,-500.0,0.00018788,2]
[421430547,1777637439000,-526.5689797,0.00018219,2]
[421430537,1777637439000,-160.0,0.00016891,2]
[421430552,1777637439000,-611.23313356,0.00018788,2]
[421430543,1777637439000,-318.52742819,0.00017628,2]
[421430576,1777637441000,-459.34763194,0.00018789,2]
[421430600,1777637443000,-88.6376803,0.00018789,2]
[421430615,1777637446000,-14301.95059916,0.00018789,2]
[421430614,1777637446000,-5000.0,0.00018601,2]
[421430807,1777638631000,-234.13669598,0.0001116,2]
[421430805,1777638631000,-288.55656119,0.00011048,2]
[421430806,1777638631000,-286.44343881,0.00011048,2]
[421430804,1777638631000,-4711.44343881,0.00011048,2]
[421431096,1777638640000,-4391.67458294,0.00018261,2]
[421431089,1777638640000,-3449.27083274,0.00014475,2]
[421431092,1777638640000,-237.7024885,0.00015388,2]
[421431095,1777638640000,-185.0,0.00017853,2]
[421431098,1777638640000,-154.71778505,0.000183,2]
[421431093,1777638640000,-4063.86390171,0.00016264,2]
[421431087,1777638640000,-213.8153228,0.00014282,2]
[421431090,1777638640000,-3736.05322049,0.00014575,2]
[421431097,1777638640000,-151.35587794,0.000183,2]
[421431080,1777638640000,-174.78124154,0.00011388,2]
[421431081,1777638640000,-206.24186502,0.00013388,2]
[421431079,1777638640000,-300.0,0.00011386,2]
[421431082,1777638640000,-1000.0,0.00013699,2]
[421431085,1777638640000,-3080.43185812,0.00014275,2]
[421431083,1777638640000,-1433.11965673,0.00014175,2]
[421431084,1777638640000,-300.0,0.00014215,2]
[421431077,1777638640000,-4765.86330402,0.0001116,2]
[421431078,1777638640000,-5000.0,0.00011273,2]
[421431086,1777638640000,-5286.74665498,0.00014275,2]
[421431088,1777638640000,-3408.24253926,0.00014375,2]
[421431104,1777638640000,-500.0,0.00018485,2]
[421431094,1777638640000,-269.16311197,0.00017388,2]
[421431118,1777638640000,-2333.18114726,0.00018486,2]
[421431117,1777638640000,-7768.6,0.00018486,2]
[421431114,1777638640000,-500.0,0.00018485,2]
[421431115,1777638640000,-500.0,0.00018485,2]
[421431116,1777638640000,-24601.37673884,0.00018486,2]
[421431113,1777638640000,-500.0,0.00018485,2]
[421431105,1777638640000,-500.0,0.00018485,2]
[421431108,1777638640000,-500.0,0.00018485,2]
[421431107,1777638640000,-477.12912318,0.00018485,2]
[421431106,1777638640000,-578.27857439,0.00018485,2]
[421431102,1777638640000,-500.0,0.00018485,2]
[421431112,1777638640000,-500.0,0.00018485,2]
[421431099,1777638640000,-155.9211304,0.000183,2]
[421431103,1777638640000,-453.33610857,0.00018485,2]
[421431101,1777638640000,-195.633,0.00018345,2]
[421431111,1777638640000,-500.0,0.00018485,2]
[421431110,1777638640000,-500.0,0.00018485,2]
[421431109,1777638640000,-500.0,0.00018485,2]
[421431100,1777638640000,-158.07969215,0.000183,2]
[421431091,1777638640000,-192.638442,0.00015068,2]
[421431131,1777638643000,-1888.90328211,0.0001,2]
[421431132,1777638643000,-937.52224708,0.0001,2]
[421431134,1777638643000,-1275.38190145,0.0001,2]
[421431133,1777638643000,-3166.47645286,0.0001,2]
[421431154,1777638646000,-185.65725574,0.00018485,2]
[421431155,1777638646000,-65398.39787133,0.00018486,2]
[421431153,1777638646000,-7296.91070995,0.0001,2]
[421431152,1777638646000,-11681.9156605,0.0001,2]
[421431156,1777638659000,24312.17443257,7.857e-05,2]
[421431213,1777639137000,17868.0,0.0002191,120]
[421431369,1777639840000,-276.11361017,0.00011429,2]
[421431367,1777639840000,-5000.0,0.00011415,2]
[421431384,1777639840000,-1719.26634701,0.00011429,2]
[421431382,1777639840000,-380.36253887,0.00011429,2]
[421431794,1777639843000,-300.0,0.0001176,2]
[421431782,1777639843000,-3956.17704058,0.0001153,2]
[421431784,1777639843000,-5000.0,0.00011646,2]
[421431786,1777639843000,-300.0,0.0001176,2]
[421431787,1777639843000,-300.0,0.0001176,2]
[421431775,1777639843000,-1456.94364157,0.00011429,2]
[421431779,1777639843000,-1043.82295942,0.0001153,2]
[421431777,1777639843000,-672.0,0.00011529,2]
[421431792,1777639843000,-300.0,0.0001176,2]
[421431796,1777639843000,-300.0,0.0001176,2]
[421431809,1777639843000,-300.0,0.0001176,2]
[421431811,1777639843000,-300.0,0.0001176,2]
[421431798,1777639843000,-300.0,0.0001176,2]
[421431813,1777639843000,-300.0,0.0001176,2]
[421431806,1777639843000,-300.0,0.0001176,2]
[421431802,1777639843000,-300.0,0.0001176,2]
[421431821,1777639843000,-300.0,0.0001176,2]
[421431790,1777639843000,-300.0,0.0001176,2]
[421431800,1777639843000,-300.0,0.0001176,2]
[421431823,1777639843000,-300.0,0.00011763,2]
[421431804,1777639843000,-300.0,0.0001176,2]
[421431849,1777639844000,-1000.0,0.00013699,2]
[421431855,1777639844000,-198.83783539,0.00014526,2]
[421431853,1777639844000,-864.0,0.00014513,2]
[421431840,1777639844000,-168.50664016,0.00012526,2]
[421431847,1777639844000,-23818.97226637,0.00013699,2]
[421431836,1777639844000,-886.0,0.00012326,2]
[421431843,1777639844000,-720.0,0.00013194,2]
[421431831,1777639844000,-290.44102623,0.00012201,2]
[421431838,1777639844000,-13969.44102623,0.00012326,2]
[421431845,1777639844000,-609.0,0.00013291,2]
[421431833,1777639844000,-144.55897377,0.00012326,2]
[421431857,1777639844000,-192.638442,0.00015068,2]
[421431827,1777639844000,-600.0,0.00011994,2]
[421431825,1777639844000,-300.0,0.00011764,2]
[421431829,1777639844000,-9.55897377,0.00012201,2]
[421431841,1777639844000,-420.0,0.00012916,2]
[421431869,1777639844000,-468.33615778,0.00016438,2]
[421431851,1777639844000,-300.0,0.00014182,2]
[421431865,1777639844000,-2710.0437304,0.00016209,2]
[421431888,1777639844000,-122092.54567889,0.00018101,2]
[421431884,1777639844000,-100000.0,0.00018099,2]
[421431886,1777639844000,-214.1358,0.000181,2]
[421431896,1777639844000,-259.14535789,0.00018101,2]
[421431882,1777639844000,-389.5,0.00018,2]
[421431892,1777639844000,-16770.0,0.00018101,2]
[421431880,1777639844000,-185.0,0.00017975,2]
[421431878,1777639844000,-244.0,0.00017561,2]
[421431863,1777639844000,-152.0,0.00016084,7]
[421431890,1777639844000,-28662.36803948,0.00018101,2]
[421431867,1777639844000,-1952.9984137,0.00016209,2]
[421431874,1777639844000,-160.0,0.00016897,2]
[421431861,1777639844000,-152.0,0.00016084,7]
[421431859,1777639844000,-1000.0,0.00015964,2]
[421431873,1777639844000,-160.0,0.00016897,2]
[421431876,1777639844000,-1000.0,0.00017561,2]
[421431871,1777639844000,-229.16903062,0.00016526,2]
[421431925,1777639846000,-785.91293108,0.00018101,2]
[421431926,1777639846000,-14544.4083953,0.00018101,2]
[421431924,1777639846000,-2646.45751752,0.00011315,2]
[421431949,1777640494000,-2646.45751752,0.00012388,2]
[421431950,1777640517000,-443.92918602,0.00012388,2]
[421431951,1777640535000,-151.07081398,0.00012388,2]
[421431952,1777640553000,-162.62264592,0.00012451,2]
[421431953,1777640575000,-2927.76405762,0.00012513,2]
[421432007,1777641032000,-2948.05154043,0.00011781,2]
[421432008,1777641032000,-586.0,0.00011781,2]
[421432024,1777641032000,-137.02925229,0.00012386,2]
[421432009,1777641032000,-2042.45808018,0.000119,2]
[421432016,1777641032000,-656.60462082,0.00012019,2]
[421432020,1777641032000,-275.0,0.0001214,2]
[421432019,1777641032000,-543.39537918,0.00012019,2]
[421432022,1777641032000,-165.35554336,0.00012203,2]
[421432014,1777641032000,-2957.54191982,0.000119,2]
[421432189,1777641040000,-1000.0,0.00013699,2]
[421432183,1777641040000,-1200.0,0.00013221,2]
[421432180,1777641040000,-300.0,0.00012386,2]
[421432181,1777641040000,-300.0,0.00012386,2]
[421432185,1777641040000,-300.0,0.00013592,2]
[421432177,1777641040000,-162.97074771,0.00012386,2]
[421432193,1777641040000,-300.0,0.00014843,2]
[421432187,1777641040000,-420.0,0.00013592,2]
[421432195,1777641040000,-360.0,0.00014915,2]
[421432207,1777641040000,-37183.02803075,0.00017888,2]
[421432205,1777641040000,-185.0,0.00017857,2]
[421432201,1777641040000,-160.0,0.00017021,2]
[421432191,1777641040000,-195.11954116,0.00014203,2]
[421432199,1777641040000,-224.88353896,0.00016203,2]
[421432210,1777641040000,-3273.73303254,0.00017888,2]
[421432197,1777641040000,-296.62197707,0.00015882,2]
[421432203,1777641040000,-455.6546349,0.0001766,2]
[421432306,1777641041000,-15539.8,0.00015882,2]
[421432404,1777641046000,-34316.23893671,0.00017888,2]
[421432403,1777641046000,-4728.07896563,0.00015882,2]
[421432399,1777641046000,-3234.54841647,0.00015882,2]
[421432402,1777641046000,-929.08524119,0.00015882,2]
[421432406,1777641046000,-467.80094451,0.00017888,2]
[421432407,1777641046000,-304.71331656,0.00017888,2]
[421432405,1777641046000,-500.0,0.00017888,2]
[421432397,1777641046000,-3610.45211619,0.00015724,2]
[421432398,1777641046000,-1389.54788381,0.00015724,2]
[421432410,1777641144000,21168.960081,0.000219,120]
[421432640,1777642015000,14107.907,0.00021918,120]
[421432653,1777642171000,291.94176834,0.00021918,120]
[421432683,1777642232000,-469.74779629,0.00012389,2]
[421432685,1777642232000,-5000.0,0.00012514,2]
[421432687,1777642232000,-166.43547339,0.00012704,2]